bitfinex/quotes_ETHUSD_20240721
["timestamp","ask_amount","ask_price","bid_price","bid_amount"]
[1721599249077,2.83611,3526.0,3524.9,5.4602]
[1721599249485,5.343,3526.1,3524.9,5.4602]
[1721599249486,2.83617,3525.9,3524.9,5.4602]
[1721599249793,2.83613,3526.0,3524.9,5.4602]
[1721599250150,2.83613,3526.0,3524.9,8.29708]
[1721599250392,2.83613,3526.0,3525.0,0.867507]
[1721599251594,2.83617,3525.9,3525.0,0.867507]
[1721599252154,2.83623,3525.8,3525.0,0.867507]
[1721599252462,2.83632,3525.7,3525.0,0.867507]
[1721599252666,2.83639,3525.6,3525.0,0.867507]
[1721599252997,2.83639,3525.6,3524.8,0.37799]
[1721599253477,2.507,3525.6,3524.6,3.0]
[1721599253650,2.507,3525.6,3524.3,3.0]
[1721599254381,2.83663,3525.3,3524.3,3.0]
[1721599254566,5.32053,3525.3,3524.3,3.0]
[1721599254767,2.83675,3525.2,3524.3,3.0]
[1721599255300,2.83657,3525.4,3524.3,3.83243]
[1721599255481,2.83666,3525.3,3524.3,3.83243]
[1721599256881,2.83649,3525.5,3524.3,6.66986]
[1721599257194,2.507,3525.6,3524.3,6.66986]
[1721599257195,2.83657,3525.4,3524.3,6.66986]
[1721599257368,5.34339,3525.6,3524.4,2.83735]
[1721599257574,2.83648,3525.5,3524.5,4.23973]
[1721599257784,2.507,3525.6,3524.6,2.83717]
[1721599257955,2.507,3525.6,3524.6,2.83719]
[1721599258299,2.507,3525.6,3524.5,4.23973]
[1721599258462,5.14025,3525.8,3524.7,2.83711]
[1721599258660,1.48604488,3526.3,3524.8,5.4059]
[1721599258891,2.507,3526.7,3525.2,5.25361]
[1721599259099,2.83566,3526.6,3525.4,2.83649]
[1721599259400,2.83568,3526.5,3525.5,3.0]
[1721599259567,2.83568,3526.5,3525.5,5.83647]
[1721599259769,5.34255,3526.7,3525.6,0.583647]
[1721599259984,5.34251,3526.7,3525.6,0.583647]
[1721599260168,2.83583,3526.3,3525.4,3.0]
[1721599260355,2.83583,3526.3,3525.2,2.4169]
[1721599260356,2.83598,3526.2,3525.2,5.4169]
[1721599260551,2.507,3526.3,3525.2,2.4169]
[1721599260790,2.83613,3526.0,3525.2,2.4169]
[1721599261211,2.83601,3526.1,3525.2,2.4169]
[1721599261356,2.83609,3526.0,3525.2,2.4169]
[1721599261559,5.34284,3526.3,3525.2,3.25859]
[1721599261560,2.83593,3526.2,3525.2,3.25859]
[1721599261913,2.8357,3526.5,3525.3,5.83663]
[1721599262261,2.8357,3526.5,3525.4,2.83652]
[1721599263099,5.34257,3526.7,3525.5,2.83646]
[1721599263302,2.507,3526.7,3525.3,5.83656]
[1721599263469,2.507,3526.7,3525.4,0.909515]
[1721599263667,2.83527,3527.0,3525.4,0.909515]
[1721599263969,2.83533,3527.0,3525.7,2.83631]
[1721599264190,2.83535,3526.9,3525.7,2.83631]
[1721599264494,3.883766,3526.9,3525.7,3.4945385]
[1721599264926,1.048416,3526.9,3525.7,3.4945385]
[1721599265101,1.048416,3526.9,3525.7,0.6582285]
[1721599265406,3.883786,3526.9,3525.7,3.4945385]
[1721599266007,2.83545,3526.8,3525.7,3.4945385]
[1721599266210,2.83545,3526.8,3525.8,0.63309985]
[1721599266565,2.83553,3526.7,3525.8,0.63309985]
[1721599266809,2.83553,3526.7,3525.6,2.83636]
[1721599268277,2.83545,3526.8,3525.7,2.83629]
[1721599269996,3.13855143,3527.4,3526.1,2.83597]
[1721599270300,2.507,3527.5,3526.3,2.83581]
[1721599270508,2.507,3527.9,3526.8,2.83536]
[1721599270698,2.507,3527.9,3526.7,2.8355]
[1721599271128,2.7160808,3528.3,3526.8,2.4788]
[1721599271286,0.2090808,3528.3,3527.4,2.4788]
[1721599272112,3.0433708,3528.3,3527.4,2.4788]
[1721599272312,0.2090808,3528.3,3527.4,2.4788]
[1721599272533,2.83461,3527.9,3527.1,3.0]
[1721599272714,2.83449,3528.0,3526.9,2.4373]
[1721599272890,2.83449,3528.0,3526.9,5.4373]
[1721599273097,2.83449,3528.0,3526.9,8.27264]
[1721599273327,2.83449,3528.0,3527.0,0.827264]
[1721599273508,0.51341788,3528.3,3527.0,3.827264]
[1721599273802,2.8343,3528.2,3527.0,3.827264]
[1721599274000,2.8343,3528.2,3527.1,2.83518]
[1721599274205,2.8343,3528.2,3527.2,3.0]
[1721599274645,2.83438,3528.1,3527.2,3.0]
[1721599274822,3.0433408,3528.3,3527.1,3.0]
[1721599275002,3.0433408,3528.3,3527.2,0.9099814]
[1721599276626,2.83432,3528.2,3527.2,0.9099814]
[1721599277336,0.2090808,3528.3,3527.2,0.9099814]
[1721599277544,0.2090808,3528.3,3527.5,2.83484]
[1721599277913,0.2090808,3528.3,3527.6,2.4345]
[1721599278122,0.2090808,3528.3,3527.7,3.07813]
[1721599278541,0.2090808,3528.3,3527.8,5.72462]
[1721599278746,0.2090808,3528.3,3527.8,2.89]
[1721599280257,0.2090808,3528.3,3527.7,0.24345]
[1721599280459,0.2090808,3528.3,3527.7,3.24345]
[1721599280658,0.2090808,3528.3,3527.8,0.567795]
[1721599283229,3.0433108,3528.3,3527.8,0.567795]
[1721599283434,0.2090808,3528.3,3527.8,0.567795]
[1721599284280,3.0433008,3528.3,3527.8,0.567795]
[1721599284564,0.2090808,3528.3,3527.8,0.567795]
[1721599284750,0.2090808,3528.3,3527.9,0.6745745]
[1721599284988,2.83431,3528.2,3527.9,0.6745745]
[1721599285531,0.2090808,3528.3,3527.9,0.6745745]
[1721599285775,3.0433108,3528.3,3527.9,0.6745745]
[1721599286776,2.83434,3528.2,3527.9,0.6745745]
[1721599287132,3.0433208,3528.3,3527.9,0.6745745]
[1721599287367,2.83431,3528.2,3527.9,0.6745745]
[1721599287674,0.2090808,3528.3,3528.0,0.44180245]
[1721599288556,0.2090808,3528.3,3527.7,3.5]
[1721599288557,3.0433208,3528.3,3527.7,3.5]
[1721599288762,0.2090808,3528.3,3527.7,0.5]
[1721599289070,2.83446,3528.1,3527.7,0.5]
[1721599289269,2.83455,3527.9,3527.7,0.5]
[1721599289431,2.83462,3527.8,3527.7,0.5]
[1721599289635,8.459702,3527.8,3527.7,0.5]
[1721599290079,13.699722,3527.8,3527.7,0.5]
[1721599290387,2.83556,3526.7,3526.0,2.2957]
[1721599290945,2.83535,3526.9,3526.0,2.2957]
[1721599291170,5.34219,3527.1,3526.0,2.2957]
[1721599291480,2.83542,3526.9,3526.1,0.22957]
[1721599291840,2.83528,3527.0,3526.1,0.22957]
[1721599292274,2.83528,3527.0,3526.1,3.22957]
[1721599292498,2.83539,3526.9,3526.1,3.22957]
[1721599292982,2.83544,3526.8,3526.1,3.22957]
[1721599293184,2.83551,3526.7,3526.1,3.22957]
[1721599293335,2.507,3527.1,3526.1,3.22957]
[1721599293336,2.83535,3526.9,3526.1,3.22957]
[1721599293543,2.83535,3526.9,3526.1,0.22957]
[1721599293820,2.83515,3527.2,3526.1,0.22957]
[1721599293940,2.83515,3527.2,3526.1,3.06555]
[1721599294135,2.83515,3527.2,3526.2,3.306555]
[1721599294540,2.83509,3527.3,3526.2,6.142435]
[1721599294743,2.83487,3527.5,3526.3,2.3563]
[1721599295464,2.83487,3527.5,3526.3,5.19211]
[1721599295661,2.83487,3527.5,3526.4,3.0]
[1721599295908,2.83487,3527.5,3526.5,1.1498665]
[1721599296666,2.83478,3527.6,3526.5,1.1498665]
[1721599296866,2.83503,3527.3,3526.5,1.1498665]
[1721599297682,2.83525,3527.1,3526.5,1.1498665]
[1721599298003,2.507,3527.5,3526.4,3.0]
[1721599298004,2.83537,3526.9,3526.4,3.0]
[1721599298215,2.83537,3526.9,3525.8,2.3619]
[1721599298216,2.83537,3526.9,3525.9,3.0]
[1721599298410,2.83537,3526.9,3525.8,5.3619]
[1721599298616,2.83519,3527.1,3525.8,5.3619]
[1721599298917,2.83519,3527.1,3526.0,2.83606]
[1721599299203,2.507,3527.5,3526.2,2.83589]
[1721599299405,2.83463,3527.8,3526.6,2.3338]
[1721599299576,2.507,3527.9,3526.6,5.16934]
[1721599299781,2.507,3527.9,3526.7,0.516934]
[1721599299976,2.507,3527.9,3526.7,6.352424]
[1721599300182,2.83463,3527.8,3526.7,6.352424]
[1721599300371,2.83447,3528.0,3526.7,3.516934]
[1721599300572,2.83447,3528.0,3526.9,2.83533]
[1721599300803,2.83447,3528.0,3527.0,3.9187764]
[1721599301726,2.7160808,3528.3,3527.3,2.835]
[1721599301727,0.2090808,3528.3,3527.3,2.835]
[1721599301884,0.2090808,3528.3,3527.0,6.7540364]
[1721599301885,0.2090808,3528.3,3527.4,2.2643]
[1721599302271,0.2090808,3528.3,3527.4,5.2643]
[1721599302474,0.2090808,3528.3,3527.5,0.809928]
[1721599302778,0.2090808,3528.3,3527.5,3.809928]
[1721599303295,0.2090808,3528.3,3527.5,6.644788]
[1721599305686,3.0433008,3528.3,3527.5,3.809928]
[1721599306220,0.2090808,3528.3,3527.5,3.809928]
[1721599306421,0.2090808,3528.3,3527.6,0.8909248]
[1721599307415,0.2090808,3528.3,3527.5,3.0]
[1721599307718,0.2090808,3528.3,3527.4,2.2643]
[1721599307892,0.2090808,3528.3,3527.4,5.0992]
[1721599308212,3.0433808,3528.3,3527.5,3.0]
[1721599308416,3.0433808,3528.3,3527.4,2.2643]
[1721599308417,0.2090808,3528.3,3527.4,2.2643]
[1721599308576,0.2090808,3528.3,3527.5,1.093441]
[1721599308994,0.2090808,3528.3,3527.5,4.093441]
[1721599309190,0.2090808,3528.3,3527.5,6.928301]
[1721599309578,0.2090808,3528.3,3527.5,4.093441]
[1721599310393,0.2090808,3528.3,3527.6,0.9192741]
[1721599311416,2.83449,3528.0,3527.5,3.0]
[1721599311723,3.0433108,3528.3,3527.0,3.9187764]
[1721599311929,3.0433108,3528.3,3527.1,0.98561244]
[1721599312221,0.2090808,3528.3,3527.1,1.04230324]
[1721599312430,0.2090808,3528.3,3527.2,5.04736152]
[1721599312721,0.2090808,3528.3,3527.5,2.83485]
[1721599313019,0.2090808,3528.3,3527.6,3.0]
[1721599314897,0.2090808,3528.3,3527.6,5.83478]
[1721599315115,0.2090808,3528.3,3527.7,0.583478]
[1721599317497,0.2090808,3528.3,3527.8,0.05668371]
[1721599317698,0.2090808,3528.3,3527.7,0.583478]
[1721599318928,0.2090808,3528.3,3527.9,2.83454]
[1721599319135,0.2090808,3528.3,3528.2,2.8343]
[1721599319337,0.2090808,3528.3,3528.2,6.59781495]
[1721599319629,0.00466,3530.0,3528.5,2.83404]
[1721599319830,0.00466,3530.0,3528.6,0.55]
[1721599320036,0.00466,3530.0,3529.1,2.83357]
[1721599320182,0.00466,3530.0,3529.1,2.3478]
[1721599320386,0.00466,3530.0,3529.2,3.76489082]
[1721599320621,0.00466,3530.0,3529.9,2.3637]
[1721599320829,1.48217246,3531.6,3530.3,2.83254]
[1721599320830,2.83165,3531.6,3530.3,2.83254]
[1721599321134,2.83165,3531.6,3529.9,2.9137]
[1721599321135,2.83627,3532.0,3530.6,2.83237]
[1721599321374,2.83627,3532.0,3530.4,3.0]
[1721599321375,0.1522886,3531.8,3530.8,5.496]
[1721599321484,0.1522886,3531.8,3531.7,4.53649]
[1721599321685,0.005,3532.0,3531.9,4.82033]
[1721599321945,0.005,3532.4,3532.3,7.65102]
[1721599322105,2.2875,3534.5,3532.7,4.81969]
[1721599322427,2.3486,3534.3,3532.4,0.05659441]
[1721599322584,2.3486,3534.3,3532.8,3.0]
[1721599322585,3.325,3534.2,3532.8,3.0]
[1721599322793,0.08791875,3534.6,3532.9,3.539]
[1721599323020,0.08791875,3534.6,3532.9,6.539]
[1721599323220,0.08791875,3534.6,3532.9,31.804]
[1721599323392,0.08791875,3534.6,3532.9,19.924]
[1721599323597,0.08791875,3534.6,3533.3,4.694]
[1721599323790,0.08791875,3534.6,3533.4,3.55]
[1721599324106,2.91713875,3534.6,3533.0,3.0]
[1721599324425,2.91713875,3534.6,3533.1,0.55]
[1721599324426,2.8295,3534.2,3533.1,0.55]
[1721599324603,2.8294,3534.4,3532.9,0.55]
[1721599324807,2.82961,3534.1,3532.9,0.55]
[1721599325187,0.08791875,3534.6,3532.9,0.55]
[1721599325328,0.08791875,3534.6,3533.0,0.05658272]
[1721599325631,0.08791875,3534.6,3533.2,2.989]
[1721599325933,2.82933,3534.4,3533.3,3.55]
[1721599326150,0.08791875,3534.6,3533.1,0.55]
[1721599326311,0.08791875,3534.6,3533.0,0.55]
[1721599326312,2.82958,3534.1,3533.0,0.55]
[1721599326647,2.82975,3533.9,3533.0,3.916069]
[1721599326800,2.82949,3534.2,3533.1,3.55]
[1721599327131,0.08791875,3534.6,3533.1,3.55]
[1721599327335,2.91713875,3534.6,3533.1,3.55]
[1721599327497,2.82957,3534.1,3533.1,3.55]
[1721599327922,2.82934,3534.4,3533.1,3.55]
[1721599328126,2.82959,3534.1,3533.1,3.55]
[1721599329115,2.83465,3534.0,3533.1,3.55]
[1721599329447,2.83466,3534.0,3533.1,3.55]
[1721599330048,0.005,3534.0,3533.1,3.55]
[1721599330215,0.005,3534.0,3533.2,0.7466069]
[1721599330413,0.005,3534.0,3533.3,0.55]
[1721599330761,2.83465,3534.0,3533.3,0.55]
[1721599331112,0.005,3534.0,3533.3,0.55]
[1721599332055,2.83466,3534.0,3533.3,0.55]
[1721599332257,2.82981,3533.8,3533.3,0.55]
[1721599332409,2.82979,3533.9,3533.3,0.55]
[1721599332615,0.005,3534.0,3533.3,0.55]
[1721599332817,0.005,3534.0,3533.2,0.55]
[1721599332818,2.83465,3534.0,3533.2,0.55]
[1721599333012,0.005,3534.0,3533.3,0.7466069]
[1721599333238,0.005,3534.0,3533.4,0.60658448]
[1721599333514,0.08791875,3534.6,3533.5,2.3163]
[1721599333717,0.08791875,3534.6,3533.8,5.81881]
[1721599333918,0.08791875,3534.6,3533.9,2.88627385]
[1721599334213,0.08791875,3534.6,3534.1,4.694]
[1721599334526,0.08791875,3534.6,3534.0,1.13752738]
[1721599334527,0.08791875,3534.6,3534.5,10.3525]
[1721599334714,0.2140808,3535.3,3534.8,2.989]
[1721599334917,0.2140808,3535.3,3534.9,3.0]
[1721599335113,0.2140808,3535.3,3535.0,0.55]
[1721599335350,0.2140808,3535.3,3535.0,0.83205916]
[1721599335513,0.2140808,3535.3,3535.0,3.83205916]
[1721599335912,0.2140808,3535.3,3535.2,2.82869]
[1721599336155,0.85397657,3536.7,3535.8,4.53318]
[1721599336326,0.85397657,3536.7,3535.9,7.852678]
[1721599336518,0.85397657,3536.7,3536.1,1.705]
[1721599336720,0.85397657,3536.7,3536.6,1.705]
[1721599336963,0.85397657,3536.7,3536.6,42.15257]
[1721599337114,0.85397657,3536.7,3536.6,3.0]
[1721599337464,2.8277,3536.5,3536.2,2.89]
[1721599337761,0.85397657,3536.7,3536.3,3.55]
[1721599338655,0.85397657,3536.7,3536.3,3.60654033]
[1721599338865,0.00211302,3538.0,3536.7,1.705]
[1721599339152,0.00211302,3538.0,3536.9,1.705]
[1721599339357,0.00211302,3538.0,3537.0,2.255]
[1721599339515,0.00211302,3538.0,3536.8,0.55]
[1721599339516,0.00211302,3538.0,3537.3,1.705]
[1721599339713,0.00211302,3538.0,3537.4,2.82693]
[1721599339916,0.00211302,3538.0,3537.5,0.05651545]
[1721599340236,0.10440162,3538.8,3538.1,2.82636]
[1721599340557,0.10440162,3538.8,3537.7,4.0763]
[1721599340558,0.10440162,3538.8,3538.5,1.705]
[1721599340740,0.10440162,3538.8,3538.6,0.55]
[1721599340955,0.10440162,3538.8,3537.1,3.10761]
[1721599340956,2.93021162,3538.8,3537.1,3.10761]
[1721599341260,0.29302116,3538.7,3537.4,0.55]
[1721599341476,0.10440162,3538.8,3537.6,2.82674]
[1721599341633,3.325,3539.7,3538.0,1.705]
[1721599341969,2.82533,3539.4,3538.1,0.55]
[1721599342254,2.82521,3539.6,3537.9,2.255]
[1721599342461,2.82527,3539.5,3538.0,0.05650487]
[1721599342620,2.82542,3539.3,3538.1,0.78115049]
[1721599343061,2.82552,3539.2,3538.1,0.23115049]
[1721599343217,2.82535,3539.4,3538.0,2.82645]
[1721599343417,2.82555,3539.2,3538.1,3.0]
[1721599343743,2.82589,3538.7,3537.9,3.0]
[1721599343973,2.82589,3538.7,3537.4,5.82686]
[1721599345090,2.82589,3538.7,3537.5,0.55]
[1721599345255,3.325,3539.2,3537.6,1.380186]
[1721599345462,2.82583,3538.8,3537.6,1.380186]
[1721599345772,2.82622,3538.3,3537.6,1.380186]
[1721599345977,3.325,3538.7,3537.3,5.72]
[1721599346476,2.82614,3538.4,3537.3,5.72]
[1721599346639,3.325,3538.7,3537.3,2.89]
[1721599347175,2.82613,3538.4,3537.3,2.89]
[1721599347388,3.723833,3538.4,3537.4,3.0]
[1721599347801,3.325,3538.2,3537.3,2.89]
[1721599347976,3.325,3537.7,3536.0,2.3099]
[1721599348297,3.325,3538.8,3535.7,2.82829]
[1721599348298,3.325,3537.1,3535.7,2.82829]
[1721599348437,2.2736,3537.6,3535.6,2.89]
[1721599348438,3.325,3536.6,3535.6,2.89]
[1721599348788,2.8279,3536.2,3535.6,2.89]
[1721599348939,2.82781,3536.3,3535.6,2.89]
[1721599349483,3.325,3536.1,3535.0,0.2255]
[1721599349788,2.82854,3535.4,3534.4,2.89]
[1721599350085,2.82878,3535.1,3534.4,2.89]
[1721599350674,2.82893,3534.9,3534.4,2.89]
[1721599350876,0.615354,3535.3,3534.4,2.89]
[1721599351080,3.443974,3535.3,3534.4,2.89]
[1721599351385,10.805,3535.6,3534.4,2.89]
[1721599351855,13.63338,3535.6,3534.4,2.89]
[1721599352175,7.48,3535.6,3534.4,5.71932]
[1721599352353,7.48,3535.6,3534.4,8.76488974]
[1721599352549,7.48,3535.6,3534.7,2.82902]
[1721599352779,7.48,3536.0,3535.0,5.81778]
[1721599352942,7.48,3536.0,3535.1,3.37875]
[1721599353455,10.3081,3536.0,3535.2,3.0]
[1721599353794,10.3081,3536.0,3534.6,0.2841]
[1721599353795,2.82791,3536.2,3534.8,2.82901]
[1721599353941,1.313558,3536.2,3535.0,2.82877]
[1721599354142,7.48,3536.4,3535.2,2.82862]
[1721599354441,7.48,3536.4,3535.3,3.0]
[1721599355138,7.48,3536.4,3535.4,0.05655575]
[1721599355338,7.48,3536.4,3535.3,3.0]
[1721599355571,7.48,3536.4,3535.2,5.88524575]
[1721599355745,7.48,3536.4,3535.3,0.87140558]
[1721599356281,7.48,3536.4,3535.3,0.92796138]
[1721599356576,7.48,3536.9,3535.5,5.879]
[1721599356775,2.82724,3537.1,3535.6,3.55]
[1721599356987,2.82758,3536.6,3535.7,1.280752]
[1721599357281,2.82773,3536.4,3535.6,3.0]
[1721599357583,2.82773,3536.4,3534.6,2.8291]
[1721599357584,7.48,3536.8,3534.5,2.82918]
[1721599357799,2.8283,3535.7,3534.2,5.23817]
[1721599357938,7.48,3536.1,3534.9,2.82892]
[1721599358137,7.48,3536.1,3534.6,5.81811]
[1721599358448,7.48,3536.1,3535.2,2.82869]
[1721599358641,10.30771,3536.5,3535.2,3.111559]
[1721599358855,10.30771,3536.5,3535.2,0.282869]
[1721599359178,2.82774,3536.4,3535.2,0.282869]
[1721599359380,10.30772,3536.5,3535.2,3.111539]
[1721599359580,2.82782,3536.3,3535.2,0.282869]
[1721599359790,2.82791,3536.2,3535.2,0.282869]
[1721599359937,2.82791,3536.2,3534.9,3.0]
[1721599359938,2.23782319,3536.2,3534.9,3.0]
[1721599360249,7.48,3536.5,3535.0,0.05656176]
[1721599360450,7.48,3536.5,3535.2,2.82869]
[1721599360650,10.30767,3536.5,3535.2,2.82869]
[1721599360889,7.48,3536.5,3535.2,2.82869]
[1721599361043,7.48,3536.5,3535.3,3.4171146]
[1721599361044,9.469,3536.5,3535.3,3.4171146]
[1721599361773,12.29666,3536.5,3535.3,3.4171146]
[1721599361979,2.82775,3536.4,3535.3,0.5885246]
[1721599362191,2.82775,3536.4,3535.2,2.82869]
[1721599362340,9.469,3536.5,3535.1,0.05655595]
[1721599362539,9.469,3536.5,3535.2,2.82866]
[1721599362857,9.469,3536.5,3535.4,2.82852]
[1721599362858,7.48,3536.5,3535.4,2.82852]
[1721599363167,2.82764,3536.6,3535.5,3.0]
[1721599363365,2.82764,3536.6,3535.3,3.0]
[1721599363569,10.30739,3536.9,3535.3,0.05655318]
[1721599363767,2.82739,3536.9,3535.3,0.05655318]
[1721599364068,7.48,3537.3,3536.0,2.82798]
[1721599364278,10.30702,3537.3,3536.1,2.82795]
[1721599364446,2.82702,3537.3,3536.1,2.82795]
[1721599364646,2.82702,3537.3,3536.1,2.8844944]
[1721599364977,2.8271,3537.2,3536.1,0.0565444]
[1721599365200,4.62410107,3537.4,3536.1,0.28846444]
[1721599365201,2.82701,3537.3,3536.1,0.28846444]
[1721599365402,10.30677,3537.7,3536.2,0.05654355]
[1721599365542,2.82695,3537.4,3536.3,0.05654343]
[1721599365990,7.48,3537.7,3536.2,3.0]
[1721599366140,7.48,3537.7,3535.9,3.0]
[1721599366347,2.82696,3537.4,3535.5,5.3224]
[1721599366655,7.48,3537.7,3535.5,5.3224]
[1721599366656,2.82767,3536.5,3535.6,0.93054853]
[1721599366973,3.109766,3537.3,3535.4,0.60455532]
[1721599366974,2.82757,3536.6,3535.4,0.60455532]
[1721599367485,2.82768,3536.5,3535.4,0.60455532]
[1721599367788,7.48,3536.9,3535.4,0.60455532]
[1721599367954,7.48,3536.9,3535.5,2.989]
[1721599368158,7.48,3536.9,3535.6,3.0565466]
[1721599368370,10.30734,3536.9,3535.7,0.83551019]
[1721599368755,10.30734,3536.9,3535.7,3.66378019]
[1721599368756,7.48,3536.9,3535.7,3.66378019]
[1721599369171,2.82744,3536.8,3535.7,0.83551019]
[1721599369549,2.82749,3536.7,3535.7,0.83551019]
[1721599369980,7.48,3536.9,3535.4,0.60455532]
[1721599370196,2.82814,3535.9,3535.2,2.89]
[1721599370547,2.82798,3536.1,3535.2,2.89]
[1721599370548,2.82824,3535.8,3535.2,2.89]
[1721599370896,2.82791,3536.2,3535.2,2.89]
[1721599371183,2.82788,3536.3,3535.2,2.89]
[1721599371380,2.8281,3536.0,3535.2,2.89]
[1721599371703,2.82825,3535.8,3535.2,2.89]
[1721599371985,2.82788,3536.3,3535.2,2.89]
[1721599372146,2.8281,3536.0,3535.2,2.89]
[1721599372346,2.82798,3536.1,3535.2,2.89]
[1721599372559,2.82806,3536.0,3535.2,2.89]
[1721599372946,2.82827,3535.8,3535.2,2.89]
[1721599373187,2.82831,3535.7,3535.2,2.89]
[1721599373488,2.82813,3535.9,3535.2,2.89]
[1721599373686,2.82825,3535.8,3535.2,2.89]
[1721599373849,2.82831,3535.7,3535.2,2.89]
[1721599374047,2.82837,3535.6,3535.2,2.89]
[1721599374280,2.82843,3535.6,3535.2,2.89]
[1721599374482,7.48,3536.9,3535.3,0.289]
[1721599374644,2.3209,3537.3,3535.3,0.289]
[1721599374645,9.8009,3537.3,3535.3,0.289]
[1721599374851,2.82819,3535.9,3535.3,0.289]
[1721599375315,2.82813,3535.9,3535.2,2.89]
[1721599376804,2.82839,3535.6,3535.2,2.89]
[1721599377013,7.48,3536.4,3535.2,2.89]
[1721599377488,2.82782,3536.3,3535.2,2.89]
[1721599377889,7.48,3536.4,3535.2,2.89]
[1721599378129,7.48,3536.8,3535.7,2.82823]
[1721599378425,2.8274,3536.9,3535.7,2.82823]
[1721599378621,2.82742,3536.8,3535.7,2.82823]
[1721599378927,2.82742,3536.8,3535.4,2.82849]
[1721599379125,2.82742,3536.8,3535.6,2.82831]
[1721599379303,2.82742,3536.8,3535.7,0.86568]
[1721599379907,2.82725,3537.0,3535.7,3.69396]
[1721599380230,2.82721,3537.1,3535.8,2.82821]
[1721599380431,3.32,3537.3,3536.0,2.82804]
[1721599380591,7.48,3537.7,3535.7,0.86568]
[1721599380592,7.48,3537.7,3535.9,4.705]
[1721599380792,3.32,3537.9,3536.0,1.405968]
[1721599380793,2.82686,3537.5,3536.0,1.405968]
[1721599381011,1.08,3537.6,3536.3,2.82781]
[1721599381012,3.9068,3537.6,3536.3,2.82781]
[1721599381226,1.08,3537.6,3536.4,2.82772]
[1721599381396,1.08,3537.6,3536.5,2.82762]
[1721599381594,0.005,3538.0,3536.5,0.05653999]
[1721599381802,0.005,3538.0,3536.9,2.82733]
[1721599382009,0.005,3538.0,3537.0,2.88376947]
[1721599382231,0.005,3538.0,3537.4,2.82693]
[1721599382433,0.005,3538.0,3537.7,5.29648]
[1721599382726,0.005,3538.0,3537.9,7.35806]
[1721599382954,0.005,3538.0,3537.9,13.34706]
[1721599383252,3.324212,3540.0,3538.8,2.82574]
[1721599383450,3.324212,3540.0,3538.3,1.705]
[1721599383608,0.004212,3540.0,3538.6,2.82597]
[1721599383809,0.317524,3539.9,3538.7,2.82587]
[1721599384063,0.317524,3539.9,3538.6,0.735701]
[1721599384244,2.8252,3539.6,3538.6,0.735701]
[1721599384552,0.004212,3540.0,3538.6,2.82593]
[1721599384722,0.004212,3540.0,3538.8,2.8258]
[1721599384928,0.004212,3540.0,3538.9,0.05649681]
[1721599385112,0.004212,3540.0,3539.0,0.05649679]
[1721599385355,0.004212,3540.0,3539.1,1.705]
[1721599385560,0.004212,3540.0,3539.3,2.989]
[1721599385719,0.004212,3540.0,3539.4,5.82526]
[1721599385914,0.004212,3540.0,3539.4,5.88174771]
[1721599386134,0.004212,3540.0,3539.5,2.82524]
[1721599386336,0.004212,3540.0,3539.7,7.51908]
[1721599386562,0.004212,3540.0,3539.8,9.865898]
[1721599386764,1e-08,3540.0,3539.8,4.040908]
[1721599387053,0.14200001,3540.0,3539.9,3.0]
[1721599387414,0.14200001,3540.0,3539.2,1.02202968]
[1721599387727,0.14200001,3540.0,3539.3,0.0564868]
[1721599387926,0.14200001,3540.0,3539.3,3.0564868]
[1721599388127,0.14200001,3540.0,3539.6,1.705]
[1721599388327,0.14200001,3540.0,3539.7,2.989]
[1721599388546,0.14200001,3540.0,3539.9,2.82493]
[1721599388746,0.14200001,3540.0,3539.9,4.176823]
[1721599388945,0.14200001,3540.0,3539.9,7.176823]
[1721599389130,0.14200001,3540.0,3539.9,4.351893]
[1721599389331,0.34623795,3540.2,3539.9,3.624393]
[1721599389533,0.34623795,3540.2,3540.1,2.82477]
[1721599389732,0.34623795,3540.2,3540.1,41.19861228]
[1721599389934,0.34623795,3540.2,3540.1,16.26861228]
[1721599390395,0.34623795,3540.2,3540.1,20.90613562]
[1721599390761,0.34623795,3540.2,3540.1,24.28090562]
[1721599391057,2.82335,3541.9,3540.6,2.989]
[1721599391371,0.332285,3541.9,3540.9,2.82407]
[1721599391533,0.4995,3542.0,3541.0,5.82402]
[1721599391878,0.4995,3542.0,3541.0,0.05646305]
[1721599392036,0.4995,3542.0,3541.0,3.0]
[1721599392363,0.4995,3542.0,3539.8,2.89]
[1721599392364,5.77826,3542.0,3540.0,2.2725]
[1721599392549,2.82374,3541.4,3540.0,5.09728]
[1721599392855,3.32277,3542.0,3540.7,2.82427]
[1721599393060,0.4995,3542.0,3540.8,2.2725]
[1721599393223,0.4995,3542.0,3541.4,7.51766]
[1721599393423,0.4995,3542.0,3541.2,2.89]
[1721599393651,0.4995,3542.0,3541.2,37.89]
[1721599393924,0.4995,3542.0,3541.4,2.2725]
[1721599394166,0.4995,3542.0,3541.5,2.989]
[1721599394328,0.4995,3542.0,3541.6,3.0]
[1721599394538,0.4995,3542.0,3541.7,2.989]
[1721599394727,0.4995,3542.0,3541.8,3.0]
[1721599395131,0.4995,3542.0,3541.2,40.71384]
[1721599395132,0.4995,3542.0,3541.2,2.89]
[1721599395431,2.82368,3541.5,3540.1,6.725969]
[1721599395674,2.82349,3541.8,3540.2,2.82466]
[1721599395965,2.82364,3541.6,3540.0,2.405]